Workbook

Sheet Startseite
B1: Rabattmodelle berechnen und vergleichen
C7: =B1 -> Rabattmodelle berechnen und vergleichen
C8: Susanne Kowalski
C10: Preispolitische Maßnahmen, wie das Gewähren von Rabatten oder Skonti haben in der Regel direkte Auswirkungen auf die Umsatz- und Absatzsituation eines Unternehmens. Sie verändern den Preis und stellen ein Mittel der Preisvariation dar. Diese Anwendung unterstützt Sie bei der Wahl des richtigen Rabattsystems und der Bestimmung der optimalen Rabatthöhe. Damit Sie darüber hinaus Auswirkungen im Zusammenhang mit Zahlungsbedingen im Blick haben, werden auch Skonti berücksichtigt.
C11: » Hilfe | G11: » Couponing
C12: » Eingaben | G12: » Skonti
C13: » Überblick | G13: » Kalkulation Eigenerzeugnisse
C14: » Rabatte | G14: » Kalkulation Handelswaren
H23: Tabelle einfügen / Startseite konfigurieren

Sheet Hilfe
C1: Anwenderhilfe für Excel
D6: » Inhaltliche Hilfe | N6: » Startseite
D7: » Technische Hilfe
D10: Inhaltliche Hilfe
D12: Die Musterlösung Rabattsysteme arbeitet im Wesentlichen mit folgenden Tabellenarbeitsblättern: • Eingaben • Überblick • Rabatte • Couponing • Skonti Die Arbeitsblätter Eingaben und Überblick zeigen die alternativen Preisgestaltungsvarianten in Tabellen- bzw. Diagrammform. In den Tabellen Rabatte, Couponing und Skonti werden die Grundlagen für die Alternativen gelegt. Das heißt, bevor Sie sinnvoll mit der Anwendung arbeiten können, müssen Sie zunächst die Grundlagendaten in diesen Tabellen erfassen.
D13: Die Tabelle Rabatte In der Tabelle Rabatte werden Mengen-, Funktions-, Personen- und Treuerabatte unterschieden. Im Zusammenhang mit Mengenrabatten müssen Sie festlegen, welcher Menge Sie welchem Rabattsatz zuordnen wollen. Bei Bedarf können Sie in der zugehörigen Spalte Rabattvariante eine Bezeichnung für den Rabatt vorgeben. Zwingend erforderlich ist die Eingabe nicht. Die Mengenrabatte können Sie dabei wahlweise auf einen einzelnen Auftrag oder auf eine bestimmte Periode beziehen. Der Bereich Funktionsrabatte deckt unterschiedliche Rabattvarianten wie Pauschalfunktionsrabatt, Personenrabatt, Händlerrabatt etc. ab. Welche Variante genommen wird, hängt im Prinzip von der von Ihnen zu vergebenden Bezeichnung der Rabattvariante ab. Auch hier geben Sie den individuellen Rabattsatz vor. Zeitrabatte, wie Einführungs-, Vorausbestellungs-, Saison- oder Auslaufrabatte werden auf den Zeitpunkt der Bestellung oder den Abnahmetermin der Ware bezogen. Einführungsrabatte sollen den Absatz neuer Produkte ankurbeln. Mit Vorausbestellungs- und Saisonrabatten soll eine bessere Disposition und eine gleichmäßige Produktion erreicht werden. Auslaufrabatte dienen in der Regel der Räumung von Lägern. Auch in diesem Zusammenhang sind die Eingabe von Rabattvariante in Form einer Bezeichnung und dem zugehörigen Rabattsatz erforderlich. Dies gilt auch für Treuerabatte, die Kundentreue belohnen und der Konkurrenz Geschäftsbeziehungen erschweren sollen. Hinweis: Felder, die Sie nicht benötigen, lassen Sie frei.
D14: Die Tabelle Couponing Das Couponing als Sonderform der Rabattgewährung erfreut sich immer größerer Beliebtheit. Für den Kauf von Waren erhält der Kunde Punkte. Die Punkte sammelt der Kunde. Das Erreichen verschiedener Punktzahlen wird dann vom Verkäufer in der Regel mit prozentualen Preisnachlässen honoriert. Um mit diesem preispolitischen Instrument arbeiten zu können, geben Sie in der Spalte Warenwert Werte vor und ordnen diesen in der nebenstehenden Spalte Punkte die gewünschte Punktzahl zu. Im Bereich Preisnachlass erfassen Sie Punktzahlen und den zugehörigen prozentualen Preisabschlag. Da erfahrungsgemäß nicht alle Kunden diese Form des Preisnachlasses nutzen bzw. nutzen können, tragen Sie im Feld Wahrscheinlichkeit ein, zu wie viel Prozent Sie mit dem Einlösen des Preisnachlasses rechnen.
D15: Die Tabelle Skonti Skonto soll einen Anreiz für den Kunden darstellen, den Rechnungsbetrag unverzüglich zu begleichen. Auf diese Weise wird der Rechnungsbetrag reduziert. In unserer Tabelle Skonti können Sie sowohl Skonto als auch das zugehörige Zahlungsziel individuell bestimmen. Der Text in der Spalte Definition wird automatisch vom Programm generiert.
D16: Rabatte und Skonti vergleichen Nachdem Sie alle Grundlagendaten erfasst haben, arbeiten Sie mit der Tabelle Eingaben. Anschließend können Sie die unterschiedlichen Auswirkungen der Rabattsysteme für konkrete Praxissituationen ablesen. 1 - Erfassen Sie zunächst Menge und Preis im oberen Tabellenteil. Für den Fall, dass Sie keine Mengen berücksichtigen wollen, geben Sie in das Feld Menge die Ziffer 1 und unter Preis den Gesamtrechnungsbetrag ein. 2 - Im folgenden Tabellenbereich haben Sie die Möglichkeit, bis zu drei Skontovarianten auszuwählen. Benötigen Sie die drei Felder nicht, schalten Sie die Berechnung durch Auswahl des Eintrags Zahlung ohne Abzug ab. 3 - Möchten Sie Couponing berücksichtigen, haken Sie das zugehörige Kontrollkästchen ab. Die erreichte Punktzahl wird anhand des Warenwertes ermittelt und dem zugehörigen Abschlag zugeordnet. Dieser wiederum wird mit dem Warenwert multipliziert und ergibt den Preisnachlass. 4 - Im Bereich Rabatte haken Sie das zugehörige Kontrollkästchen ab, wenn Sie einen Mengenrabatt berücksichtigen wollen. In den Zeilen Funktions-, Zeit- und Treuerabatt wählen Sie bei Bedarf aus dem Kombinationsfeld die gewünschte Variante aus. Entscheiden Sie sich für kein Rabatt, wenn der zugehörige Rabatt unberücksichtigt bleiben soll. Die zugehörigen Rabatte werden ebenfalls automatisch ausgewiesen. 5 - Die grafische Auswertung und eine Zusammenfassung des Zahlenmaterials finden Sie im Arbeitsblatt Überblick.
D19: Technische Hilfe | N19: » Startseite
D21: Zum komfortablen Umgang mit diesem und anderen Excel-Tools erläutern wir hier einige Funktionen, die Sie beim Arbeiten mit Excel häufig benötigen, wie etwa die Anpassung der Startseite an Ihre persönlichen Bedürfnisse oder die Möglichkeiten der Haufe Toolbar.
D24: Startseite konfigurieren
D25: Über den Link Startseite konfigurieren gelangen Sie in ein Dialogfeld, in dem Sie alle nötigen Anpassungen der Startseite vornehmen können. Hier können Sie weitere Tabellen einfügen, diese umbenennen oder löschen. Haben Sie eine Tabelle in der Liste markiert, können Sie mithilfe der Pfeiltasten die Reihenfolge der Tabellen ändern. Diese Änderung wirkt sich sowohl auf die Darstellung auf der Startseite aus, als auch auf die Position der Tabelle im Blattregister und im Listenfeld in der Toolbar.
D29: Klicken Sie auf Speichern, werden die vorgenommenen Änderungen wirksam und Sie springen zurück zur Startseite.
D31: Wenn Sie eine Tabelle im Listenfeld ausgewählt haben, gelangen Sie über den Button Gehe zu direkt zur gewünschten Tabelle.
D33: Möchten Sie eine Tabelle umbenennen, markieren Sie diese und vergeben Sie im nebenstehenden Feld einen neuen Namen. Mithilfe des Buttons Tabelle umbenennen werden die Änderungen gespeichert.
D35: Logo auswählen
D36: Über das Feld Logo auswählen können Sie Ihr eigenes Firmenlogo auf jeder Tabellenseite einbinden. Klicken Sie auf Durchsuchen, wählen Sie die gewünschte Datei aus und importieren Sie diese mithilfe des Buttons Hochladen. Bitte beachten Sie dabei unbedingt die maximale Größe des neuen Logos. Die Datei sollte die Maße 35 px (Breite) und 84px (Höhe) nicht überschreiten. Bitte achten Sie auch darauf, dass die Datei 50 KB nicht überschreitet.
D38: Hinweis: | E38: Bitte ändern Sie die Namen der Blattregister nur über das Dialogfeld Tabelle einfügen/Startseite konfigurieren auf der Startseite. Wenn Sie die Blattregister per Doppelklick umbenennen, funktionieren die Navigationslinks der Startseite bis zu einer Aktualisierung nicht mehr).
D41: Haufe Toolbar
D42: Die Haufe Toolbar ist das zentrale Navigationselement und erleichtert Ihnen die Navigation innerhalb des Tools. Hier werden ebenfalls die wichtigsten Funktionen für die Handhabung des Tools angeboten.
D46: Mithilfe der Vor- und Zurück-Schaltflächen können Sie innerhalb der zuletzt aufgerufenen Seiten navigieren. Über das Listenfeld rufen Sie direkt die gewünschten Tabellen auf. Die wichtigsten Funktionen Speichern, Drucken, Kopieren und Einfügen werden ebenfalls zentral in der Toolbar angeboten.
D49: Optionen
H51: » Gitternetz ein/aus
H52: » Zeilen- und Spaltenbeschriftung ein/aus
H53: » Blattregister ein/aus
H54: » Kopf- und Fußzeile anpassen
H55: » Zoom einstellen
D60: Gitternetz ein/aus
D61: Mit Hilfe dieses Menübefehls können Sie die Anzeige des Gitternetzes ein- und ausschalten.
D64: Zeilen- und Spaltenbeschriftung ein/aus
D65: Mit Hilfe dieses Menübefehls können Sie die Anzeige der Zeilen- und Spaltenköpfe ein- und ausschalten.
D68: Blattregister ein/aus
D69: Mit Hilfe dieses Menübefehls können Sie die Anzeige der Blattregister ein- und ausschalten.
D72: Kopf- und Fußzeile bearbeiten
D73: Über diesen Menübefehl rufen Sie einen Dialog auf, in dem Sie Ihre Kopf- und Fußzeilen einstellen können. Auf dem Reiter Eingabe Daten können Sie Angaben zur Firma, zur Abteilung und zum Autor eintragen.
D75: Auf dem Reiter Kopf- und Fußzeile anpassen können Sie auswählen, wo die gewünschten Angaben platziert werden sollen. Wählen Sie dazu den Bereich (Kopf- oder Fußzeile) aus, sowie die Platzierung (Links, Mitte oder Rechts).
D78: Damit Sie Ihre Einstellungen in der Vorschau überprüfen können, müssen Sie die Einstellungen übernehmen mithilfe des gleichnamigen Buttons. Die Schaltfläche Alle Kopf- und Fußzeilen entfernen löscht alle Eintragungen in der Kopf- und Fußzeile. Bitte beachten Sie, dass diese beiden Vorgänge etwas andauern können.
D81: Zoom einstellen
D82: Mit Hilfe dieses Menübefehls können Sie den Zoom für die einzelnen Arbeitsblätter einstellen. Standardmäßig ist ein 85%-iger Zoom eingestellt, den Sie jedoch jederzeit ändern können.
D85: Hilfe
D86: Über den Hilfe-Button der Haufe Toolbar gelangen Sie auf die Hilfe-Seite, die Ihnen inhaltliche Hilfestellung bietet sowie Hinweise zur technischen Handhabung des Tools.
D89: Hinweis
D90: Beim mehrmaligen Öffnen mit dem IE 7 aus einer Online-Version heraus, erscheint die Meldung, dass dieses Tool bereits verwendet wird. Öffnen Sie es schreibgeschützt und speichern Sie es lokal auf Ihrem Rechner ab. Wenn Sie die Meldung unterbinden möchten, aktivieren Sie über Extras > Internetoptionen > Erweitert > Bei Einstellungen/Sicherheit die Option "Leeren des Ordners für temporäre Internetdateien beim Schließen des Browsers".

Sheet Eingaben
C1: Eingaben
E6: Eingaben | J6: » Startseite
E8: Menge | G8: Preis | I8: Warenwert | J8: =E9*G9 -> 6900
E9: 100 | G9: 69 | I9: Zu berücksichtigender Wert | J9: =IF(J8<100,ROUNDDOWN(J8,-1),ROUNDDOWN(J8,-2)) -> 6900
E11: =E9 -> 100
E12: Skonto | I12: 13 | J12: =VLOOKUP($I$12,Skonti!$D$9:$E$28,2)*$J$8 -> 224.25
I14: 7 | J14: =VLOOKUP($I$14,Skonti!$D$9:$E$28,2)*$J$8 -> 120.75
I16: 1 | J16: =VLOOKUP($I$16,Skonti!$D$9:$E$28,2)*$J$8 -> 0
E19: Couponing | F19: =IF(E20=TRUE,IF(J8<Couponing!E11,0,VLOOKUP(J9,Couponing!E11:F35,2)),0) -> 13 | G19: Punkte
E20: TRUE | F20: =IF(F19<Couponing!H11,0,H20) -> 10 | G20: zu bewertende Punkte | H20: =ROUNDDOWN(F19,-1) -> 10
G21: Preisnachlass | H21: =IF(F20<Couponing!H11,0,VLOOKUP($F$20,Couponing!$H$11:$I$35,2)) -> 0.005 | I21: entspricht | J21: =J8*H21 -> 34.5
I22: Wahrscheinlichkeit | J22: =Couponing!F8*J21 -> 17.25
E25: Rabatte
E27: Mengenrabatt | F27: TRUE | H27: Rabattsatz | I27: =IF(F27=TRUE,IF(E11<Rabatte!E11,0,VLOOKUP(E11,Rabatte!E10:F35,2)),0) -> 0.02 | J27: =I27*J8 -> 138
E29: Funktionsrabatt | G29: 2 | H29: Rabattsatz | I29: =VLOOKUP(G29,Rabatte!G10:I35,3) -> 0.05 | J29: =I29*J8 -> 345
E31: Zeitrabatt | G31: 3 | H31: Rabattsatz | I31: =VLOOKUP(G31,Rabatte!J10:L35,3) -> 0.015 | J31: =I31*J8 -> 103.5
E33: Treuerabatt | G33: 2 | H33: Rabattsatz | I33: =VLOOKUP(G33,Rabatte!M10:P35,4) -> 0.02 | J33: =I33*J8 -> 138
E39: Skonto 1 | F39: =J12 -> 224.25
E40: Skonto 2 | F40: =J14 -> 120.75
E41: Skonto 3 | F41: =J16 -> 0
E42: Couponing | F42: =J22 -> 17.25 | G42: Wahrscheinlichkeit
E43: Mengenrabatt | F43: =J27 -> 138
E44: Raumrabatt | F44: =J29 -> 345
E45: Personalrabatt | F45: =J31 -> 103.5
E46: Treuerabatt | F46: =J33 -> 138

Sheet Überblick
C1: Überblick
D6: Überblick über alle Alternativen | O6: » Startseite
D8: =Eingaben!E39 -> Skonto 1 | E8: =Eingaben!F39 -> 224.25
D9: =Eingaben!E40 -> Skonto 2 | E9: =Eingaben!F40 -> 120.75
D10: =Eingaben!E41 -> Skonto 3 | E10: =Eingaben!F41 -> 0
D11: =Eingaben!E42 -> Couponing | E11: =Eingaben!F42 -> 17.25
D12: =Eingaben!E43 -> Mengenrabatt | E12: =Eingaben!F43 -> 138
D13: =Eingaben!E44 -> Raumrabatt | E13: =Eingaben!F44 -> 345
D14: =Eingaben!E45 -> Personalrabatt | E14: =Eingaben!F45 -> 103.5
D15: =Eingaben!E46 -> Treuerabatt | E15: =Eingaben!F46 -> 138

Sheet Rabatte
C1: Rabatte
D6: Rabatte | P6: » Startseite
D8: Mengenrabatte | H8: Funktionsrabatte | K8: Zeitrabatte | N8: Treuerabatte
D9: Rabattvariante | E9: Menge | F9: Rabattsatz | H9: Rabattvariante | I9: Rabattsatz | K9: Rabattvariante | L9: Rabattsatz | N9: Rabattvariante | O9: Jahre | P9: Rabattsatz
D10: kein Rabatt | E10: 0 | F10: 0 | G10: 1 | H10: kein Rabatt | I10: 0 | J10: 1 | K10: kein Rabatt | L10: 0 | M10: 1 | N10: kein Rabatt | O10: 0 | P10: 0
D11: RMV1 | E11: 100 | F11: 0.02 | G11: 2 | H11: RFV1 | I11: 0.05 | J11: 2 | K11: RRV1 | L11: 0.01 | M11: 2 | N11: RRV1 | O11: 2 | P11: 0.02
D12: RMV2 | E12: 200 | F12: 0.025 | G12: 3 | H12: RFV2 | I12: 0.075 | J12: 3 | K12: RRV2 | L12: 0.015 | M12: 3 | N12: RRV2 | O12: 3 | P12: 0.03
D13: RMV3 | E13: 300 | F13: 0.03 | G13: 4 | H13: RFV3 | I13: 0.1 | J13: 4 | K13: RRV3 | L13: 0.02 | M13: 4 | N13: RRV3 | O13: 4 | P13: 0.04
D14: RMV4 | E14: 400 | F14: 0.035 | G14: 5 | H14: RFV4 | I14: 0.125 | J14: 5 | K14: RRV4 | L14: 0.025 | M14: 5 | N14: RRV4 | O14: 5 | P14: 0.05
D15: RMV5 | E15: 500 | F15: 0.04 | G15: 6 | H15: RFV5 | I15: 0.15 | J15: 6 | K15: RRV5 | L15: 0.03 | M15: 6 | N15: RRV5 | O15: 6 | P15: 0.06
D16: RMV6 | E16: 600 | F16: 0.045 | G16: 7 | H16: RFV6 | I16: 0.175 | J16: 7 | K16: RRV6 | L16: 0.035 | M16: 7 | N16: RRV6 | O16: 7 | P16: 0.07
D17: RMV7 | E17: 700 | F17: 0.05 | G17: 8 | H17: RFV7 | I17: 0.2 | J17: 8 | K17: RRV7 | L17: 0.04 | M17: 8 | N17: RRV7 | O17: 8 | P17: 0.08
D18: RMV8 | E18: 800 | F18: 0.055 | G18: 9 | H18: RFV8 | I18: 0.225 | J18: 9 | K18: RRV8 | L18: 0.045 | M18: 9 | N18: RRV8 | O18: 9 | P18: 0.09
D19: RMV9 | E19: 900 | F19: 0.06 | G19: 10 | H19: RFV9 | I19: 0.25 | J19: 10 | K19: RRV9 | L19: 0.05 | M19: 10 | N19: RRV9 | O19: 10 | P19: 0.1
D20: RMV10 | E20: 1000 | F20: 0.065 | G20: 11 | H20: RFV10 | I20: 0.3 | J20: 11 | K20: RRV10 | L20: 0.055 | M20: 11 | N20: RRV10 | O20: 11 | P20: 0.11
D21: RMV11 | E21: 1100 | F21: 0.07 | G21: 12 | H21: RFV11 | I21: 0.325 | J21: 12 | K21: RRV11 | L21: 0.06 | M21: 12 | N21: RRV11 | O21: 12 | P21: 0.12
D22: RMV12 | E22: 1200 | F22: 0.075 | G22: 13 | H22: RFV12 | I22: 0.35 | J22: 13 | K22: RRV12 | L22: 0.065 | M22: 13 | N22: RRV12 | O22: 13 | P22: 0.13
D23: RMV13 | E23: 1300 | F23: 0.08 | G23: 14 | H23: RFV13 | I23: 0.375 | J23: 14 | K23: RRV13 | L23: 0.07 | M23: 14 | N23: RRV13 | O23: 14 | P23: 0.14
D24: RMV14 | E24: 1400 | F24: 0.085 | G24: 15 | H24: RFV14 | I24: 0.4 | J24: 15 | K24: RRV14 | L24: 0.075 | M24: 15 | N24: RRV14 | O24: 15 | P24: 0.15
D25: RMV15 | E25: 1500 | F25: 0.09 | G25: 16 | H25: RFV15 | I25: 0.425 | J25: 16 | K25: RRV15 | L25: 0.08 | M25: 16 | N25: RRV15 | O25: 16 | P25: 0.16
D26: RMV16 | E26: 1600 | F26: 0.095 | G26: 17 | H26: RFV16 | I26: 0.45 | J26: 17 | K26: RRV16 | L26: 0.085 | M26: 17 | N26: RRV16 | O26: 17 | P26: 0.17
D27: RMV17 | E27: 1700 | F27: 0.1 | G27: 18 | H27: RFV17 | I27: 0.475 | J27: 18 | K27: RRV17 | L27: 0.09 | M27: 18 | N27: RRV17 | O27: 18 | P27: 0.18
D28: RMV18 | E28: 1800 | F28: 0.105 | G28: 19 | H28: RFV18 | I28: 0.5 | J28: 19 | K28: RRV18 | L28: 0.095 | M28: 19 | N28: RRV18 | O28: 19 | P28: 0.19
D29: RMV19 | E29: 1900 | F29: 0.11 | G29: 20 | H29: RFV19 | I29: 0.525 | J29: 20 | K29: RRV19 | L29: 0.1 | M29: 20 | N29: RRV19 | O29: 20 | P29: 0.2
D30: RMV20 | E30: 2000 | F30: 0.115 | G30: 21 | H30: RFV20 | I30: 0.55 | J30: 21 | K30: RRV20 | L30: 0.105 | M30: 21 | N30: RRV20 | O30: 21 | P30: 0.21
D31: RMV21 | E31: 2100 | F31: 0.12 | G31: 22 | H31: RFV21 | I31: 0.575 | J31: 22 | K31: RRV21 | L31: 0.11 | M31: 22 | N31: RRV21 | O31: 22 | P31: 0.22
D32: RMV22 | E32: 2200 | F32: 0.125 | G32: 23 | H32: RFV22 | I32: 0.6 | J32: 23 | K32: RRV22 | L32: 0.115 | M32: 23 | N32: RRV22 | O32: 23 | P32: 0.23
D33: RMV23 | E33: 2300 | F33: 0.13 | G33: 24 | H33: RFV23 | I33: 0.625 | J33: 24 | K33: RRV23 | L33: 0.12 | M33: 24 | N33: RRV23 | O33: 24 | P33: 0.24
D34: RMV24 | E34: 2400 | F34: 0.135 | G34: 25 | H34: RFV24 | I34: 0.65 | J34: 25 | K34: RRV24 | L34: 0.125 | M34: 25 | N34: RRV24 | O34: 25 | P34: 0.25
D35: RMV25 | E35: 2500 | F35: 0.14 | G35: 26 | H35: RFV25 | I35: 0.675 | J35: 26 | K35: RRV25 | L35: 0.15 | M35: 26 | N35: RRV25 | O35: 30 | P35: 0.26

Sheet Couponing
C1: Couponing
D6: Couponing | I6: » Startseite
D8: Wahrscheinlichkeit des Einlösens | F8: 0.5 | H8: Preisnachlass
E10: Warenwert | F10: Punkte | H10: Punkte | I10: Abschlag
D11: CV1 | E11: 500 | F11: 1 | H11: 10 | I11: 0.005
D12: CV2 | E12: 1000 | F12: 2 | H12: 20 | I12: 0.01
D13: CV3 | E13: 1500 | F13: 3 | H13: 30 | I13: 0.015
D14: CV4 | E14: 2000 | F14: 4 | H14: 40 | I14: 0.02
D15: CV5 | E15: 2500 | F15: 5 | H15: 50 | I15: 0.025
D16: CV6 | E16: 3000 | F16: 6 | H16: 60 | I16: 0.03
D17: CV7 | E17: 3500 | F17: 7 | H17: 70 | I17: 0.035
D18: CV8 | E18: 4000 | F18: 8 | H18: 80 | I18: 0.04
D19: CV9 | E19: 4500 | F19: 9 | H19: 90 | I19: 0.045
D20: CV10 | E20: 5000 | F20: 10 | H20: 100 | I20: 0.05
D21: CV11 | E21: 5500 | F21: 11 | H21: 110 | I21: 0.055
D22: CV12 | E22: 6000 | F22: 12 | H22: 120 | I22: 0.06
D23: CV13 | E23: 6500 | F23: 13 | H23: 130 | I23: 0.065
D24: CV14 | E24: 7000 | F24: 14 | H24: 140 | I24: 0.07
D25: CV15 | E25: 7500 | F25: 15 | H25: 150 | I25: 0.075
D26: CV16 | E26: 8000 | F26: 16 | H26: 160 | I26: 0.08
D27: CV17 | E27: 8500 | F27: 17 | H27: 170 | I27: 0.085
D28: CV18 | E28: 9000 | F28: 18 | H28: 180 | I28: 0.09
D29: CV19 | E29: 9500 | F29: 19 | H29: 190 | I29: 0.095
D30: CV20 | E30: 10000 | F30: 20 | H30: 200 | I30: 0.1
D31: CV21 | E31: 10500 | F31: 21 | H31: 210 | I31: 0.105
D32: CV22 | E32: 11000 | F32: 22 | H32: 220 | I32: 0.11
D33: CV23 | E33: 11500 | F33: 23 | H33: 230 | I33: 0.115
D34: CV24 | E34: 12000 | F34: 24 | H34: 240 | I34: 0.12
D35: CV25 | E35: 12500 | F35: 25 | H35: 250 | I35: 0.125

Sheet Skonti
C1: Skonti
D6: Skonto | H6: » Startseite
D8: Skontovariante | E8: Skonto | F8: Zahlungsziel | H8: Definition
D9: 1 | E9: 0 | F9: 60 | G9: Tage | H9: zahlbar ohne Abzug
D10: 2 | E10: 0.005 | F10: 50 | G10: Tage | H10: ="bei Zahlung innerhalb von "&F10&" Tagen gewähren wir "&I10&" % Skonto" -> bei Zahlung innerhalb von 50 Tagen gewähren wir 0,5 % Skonto | I10: =E10*100 -> 0.5
D11: 3 | E11: 0.0075 | F11: 45 | G11: Tage | H11: bei Zahlung innerhalb von 45 Tagen gewähren wir 0,75 % Skonto | I11: 0.75
D12: 4 | E12: 0.01 | F12: 40 | G12: Tage | H12: bei Zahlung innerhalb von 40 Tagen gewähren wir 1 % Skonto | I12: 1
D13: 5 | E13: 0.0125 | F13: 35 | G13: Tage | H13: bei Zahlung innerhalb von 35 Tagen gewähren wir 1,25 % Skonto | I13: 1.25
D14: 6 | E14: 0.015 | F14: 30 | G14: Tage | H14: bei Zahlung innerhalb von 30 Tagen gewähren wir 1,5 % Skonto | I14: 1.5
D15: 7 | E15: 0.0175 | F15: 28 | G15: Tage | H15: bei Zahlung innerhalb von 28 Tagen gewähren wir 1,75 % Skonto | I15: 1.75
D16: 8 | E16: 0.02 | F16: 24 | G16: Tage | H16: bei Zahlung innerhalb von 24 Tagen gewähren wir 2 % Skonto | I16: 2
D17: 9 | E17: 0.0225 | F17: 21 | G17: Tage | H17: bei Zahlung innerhalb von 21 Tagen gewähren wir 2,25 % Skonto | I17: 2.25
D18: 10 | E18: 0.025 | F18: 18 | G18: Tage | H18: bei Zahlung innerhalb von 18 Tagen gewähren wir 2,5 % Skonto | I18: 2.5
D19: 11 | E19: 0.0275 | F19: 14 | G19: Tage | H19: bei Zahlung innerhalb von 14 Tagen gewähren wir 2,75 % Skonto | I19: 2.75
D20: 12 | E20: 0.03 | F20: 12 | G20: Tage | H20: bei Zahlung innerhalb von 12 Tagen gewähren wir 3 % Skonto | I20: 3
D21: 13 | E21: 0.0325 | F21: 10 | G21: Tage | H21: bei Zahlung innerhalb von 10 Tagen gewähren wir 3,25 % Skonto | I21: 3.25
D22: 14 | E22: 0.035 | F22: 8 | G22: Tage | H22: bei Zahlung innerhalb von 8 Tagen gewähren wir 3,5 % Skonto | I22: 3.5
D23: 15 | E23: 0.0375 | F23: 7 | G23: Tage | H23: bei Zahlung innerhalb von 7 Tagen gewähren wir 3,75 % Skonto | I23: 3.75
D24: 16 | E24: 0.04 | F24: 5 | G24: Tage | H24: bei Zahlung innerhalb von 5 Tagen gewähren wir 4 % Skonto | I24: 4
D25: 17 | E25: 0.0425 | F25: 4 | G25: Tage | H25: bei Zahlung innerhalb von 4 Tagen gewähren wir 4,25 % Skonto | I25: 4.25
D26: 18 | E26: 0.045 | F26: 3 | G26: Tage | H26: bei Zahlung innerhalb von 3 Tagen gewähren wir 4,5 % Skonto | I26: 4.5
D27: 19 | E27: 0.0475 | F27: 2 | G27: Tage | H27: bei Zahlung innerhalb von 2 Tagen gewähren wir 4,75 % Skonto | I27: 4.75
D28: 20 | E28: 0.05 | F28: 0 | G28: Tage | H28: bei Zahlung innerhalb von 0 Tagen gewähren wir 5 % Skonto | I28: 5

Sheet Kalkulation_eigen
C1: Kalkulation
D6: Kalkulation selbst hergestellter Erzeugnisse
E8: Zuschlagssatz | F8: Betrag | G8: Anteil
D9: Fertigungsmaterial | F9: 50 | G9: =IF($F$29=0,"",F9/$F$29) -> 0.1541977221
D10: Materialgemeinkosten | E10: 0.25 | F10: =F9*E10 -> 12.5 | G10: =IF($F$29=0,"",F10/$F$29) -> 0.03854943053
D11: Materialkosten | F11: =F10+F9 -> 62.5 | G11: 0.1927471526
D12: Fertigungslöhne | F12: 40 | G12: 0.1233581777
D13: Fertigungsgemeinkosten | E13: 0.3 | F13: =F12*E13 -> 12 | G13: 0.0370074533
D14: Sondereinzelkosten der Fertigung | F14: 10 | G14: 0.03083954442
D15: Fertigungskosten | F15: =SUM(F12:F14) -> 62 | G15: 0.1912051754
D16: Herstellkosten | F16: =+F15+F11 -> 124.5 | G16: 0.383952328
D17: Verwaltungsgemeinkosten | E17: 0.35 | F17: =E17*$F$16 -> 43.575 | G17: 0.1343833148
D18: Vertriebsgemeinkosten | E18: 0.05 | F18: =E18*$F$16 -> 6.225 | G18: 0.0191976164
D19: Sondereinzelkosten des Vertriebs | F19: 10 | G19: 0.03083954442
D20: Selbstkosten | F20: =SUM(F16:F19) -> 184.3 | G20: 0.5683728037
D21: Gewinn | E21: 0.1 | F21: =E21*F20 -> 18.43 | G21: 0.05683728037
D22: Barverkaufspreis | F22: =F21+F20 -> 202.73 | G22: 0.625210084
D23: Kundenskonto | E23: 0.02 | F23: =E23*$F$22/(100%-E23-E24) -> 4.359784946 | G23: 0.01344537815
D24: Vertreterprovision | E24: 0.05 | F24: =E24*$F$22/(100%-E24-E23) -> 10.89946237 | G24: 0.03361344538
D25: Zielverkaufspreis | F25: =SUM(F22:F24) -> 217.9892473 | G25: 0.6722689076
D26: Kundenrabatt | E26: 0.2 | F26: =E26*F25/(100%-E26) -> 54.49731183 | G26: 0.1680672269
D27: Listenverkaufspreis | F27: =+F26+F25 -> 272.4865591 | G27: 0.8403361345
D28: MwSt | E28: 0.19 | F28: =E28*F27 -> 51.77244624 | G28: 0.1596638655
D29: Bruttoverkaufspreis | F29: =+F27+F28 -> 324.2590054 | G29: 1

Sheet Kalkulation_Handelswaren
C1: Kalkulation
D6: Kalkulation von Handelswaren
D8: Bezeichnung | E8: Zuschlags- | F8: Kosten | G8: Anteil
E9: satz | G9: am BVP
D10: Bruttolistenpreis | F10: 119 | G10: =F10/$F$22 -> 0.9834710744
D11: Mehrwertsteuersatz | E11: 0.19 | F11: =F10/(100%+E11)*E11 -> 19 | G11: =F11/$F$22 -> 0.1570247934
D12: Listenpreis ohne Mehrwertsteuer | F12: =+F10-F11 -> 100 | G12: 0.826446281
D13: Liefererrabatt | E13: 0.1 | F13: =F12*E13 -> 10 | G13: 0.0826446281
D14: Zieleinkaufspreis | F14: =+F12-F13 -> 90 | G14: 0.7438016529
D15: Lieferantenskonto | E15: 0.01 | F15: =F14*E15 -> 0.9 | G15: 0.007438016529
D16: Bareinkaufspreis | F16: =+F14-F15 -> 89.1 | G16: 0.7363636364
D17: Bezugskosten | F17: 10.9 | G17: 0.09008264463
D18: Bezugspreis | F18: =+F16+F17 -> 100 | G18: 0.826446281
D19: Geschäftskosten | E19: 0.1 | F19: =F18*E19 -> 10 | G19: 0.0826446281
D20: Selbstkosten | F20: =+F18+F19 -> 110 | G20: 0.9090909091
D21: Gewinn | E21: 0.1 | F21: =F20*E21 -> 11 | G21: 0.09090909091
D22: Barverkaufspreis (BVP) | F22: =+F20+F21 -> 121 | G22: 1
D23: Skonto | E23: 0.01 | F23: =E23*F22/(100%-E23-E24) -> 1.359550562 | G23: 0.01123595506
D24: Vertreterprovision | E24: 0.1 | F24: =E24*F22/(100%-E24-E23) -> 13.59550562 | G24: 0.1123595506
D25: Zielverkaufspreis (ZVP) | F25: =+F22+F23+F24 -> 135.9550562 | G25: 1.123595506
D26: Kundenrabatt | E26: 0.1 | F26: =E26*F25/(100%-E26) -> 15.10611735 | G26: 0.1248439451
D27: Listenverkaufspreis, netto | F27: =F25+F26 -> 151.0611735 | G27: 1.248439451
D28: Mehrwertsteuersatz | E28: 0.19 | F28: =F27*E28 -> 28.70162297 | G28: 0.2372034956
D29: Listenverkaufspreis, brutto | F29: =+F27+F28 -> 179.7627965 | G29: =F29/$F$22 -> 1.485642946

Sheet TabVorlage (hidden)
C1: =Startseite!B1 -> Rabattmodelle berechnen und vergleichen
D6: Untertitel | H6: » Startmenü

Sheet Tabelle1 (hidden)
A1: FALSE | B1: Bitte wählen | C1: FALSE | D1: FALSE | E1: FALSE
A2: FALSE | B2: Bitte wählen | C2: FALSE | D2: FALSE | E2: FALSE
A3: FALSE | B3: Bitte wählen | C3: FALSE | D3: FALSE | E3: FALSE
A4: FALSE | B4: Bitte wählen | C4: FALSE | D4: FALSE | E4: FALSE
A5: FALSE | B5: Bitte wählen | C5: FALSE | D5: FALSE | E5: FALSE
A6: FALSE | B6: Bitte wählen | C6: FALSE | D6: FALSE | E6: FALSE

Sheet VERLAUF (hidden)
A1: Startseite | B1: 6

Sheet ICONS (hidden)
